{"text_format":"1","workbook":"xlsx","n_sheets":5,"sheets":["FORMATOPEDIDO2.0","ALUMNO2","ALUMNO3","Resumen","menu"],"not_rendered":{"charts":0,"images":17,"macros":1,"external_links":0,"defined_names":5,"comments":1,"pivot_tables":0},"unopened":[],"bounds":{"document_bytes":16777216,"sheet_cells":100000,"rows_first":2000,"rows_last":500,"rows_between":2000,"halvings":0,"cell_chars":16384,"cell_head_chars":4096},"cells_cut":0,"cells_raw":0,"read":"whole","date_system":"1900"}

{"sheet":"FORMATOPEDIDO2.0","index":0,"n_rows":102,"n_cols":10,"rows_kept":102,"cut":false,"hidden":false,"merged":[[57,1,57,2],[57,3,57,4],[57,5,57,6],[57,7,57,8],[57,9,57,10],[47,1,47,2],[47,3,47,4],[47,5,47,6],[47,7,47,8],[47,9,47,10],[17,1,17,2],[17,3,17,4],[17,5,17,6],[17,7,17,8],[17,9,17,10],[22,10,23,10],[42,6,43,6],[66,1,66,3],[67,1,67,3],[22,4,23,4],[22,6,23,6],[27,1,27,2],[27,3,27,4],[27,5,27,6],[27,7,27,8],[27,9,27,10],[37,1,37,2],[37,3,37,4],[37,5,37,6],[37,7,37,8],[37,9,37,10],[0,3,0,7],[2,0,2,10],[1,3,1,7],[52,2,53,2],[52,4,53,4],[52,6,53,6],[52,8,53,8],[52,10,53,10],[32,2,33,2],[32,4,33,4],[32,6,33,6],[32,8,33,8],[32,10,33,10],[42,2,43,2],[42,4,43,4],[3,0,3,10],[5,1,5,2],[6,1,6,2],[6,3,6,4],[4,0,4,2],[5,3,5,8],[6,6,6,8],[7,0,7,2],[8,0,8,2],[9,1,9,2],[8,3,8,6],[9,3,9,6],[70,0,73,9],[101,0,101,10],[8,8,8,9],[9,8,9,9],[11,0,11,10],[97,0,97,10],[98,0,98,10],[62,2,63,2],[62,4,63,4],[62,6,63,6],[62,8,63,8],[62,10,63,10],[42,8,43,8],[42,10,43,10],[22,2,23,2],[22,8,23,8],[58,1,61,1],[58,5,61,5],[58,7,61,7],[58,9,61,9],[69,0,69,1]]}
[null,null,null,"HAPPY LUNCHES SERVICE"]
[null,null,null,"SANTA MARIA PRIMARIA\n (5to Y 6to GRADO)"]
["BCP Cuenta Corriente Soles:  194-1894682000                                                                  Cód. Cta. Interbancario BCP:  002 194 001894682000 90  "]
["FAVOR ENVIAR VOUCHER O TRANSFERENCIA ELECTRÓNICA A NUESTRO E-MAIL UNA VEZ REALIZADO EL ABONO EN NUESTRA CUENTA. GRACIAS POR SU COLABORACIÓN."]
[" DATOS DEL PADRE O APODERADO :"]
[null,"NOMBRES Y APELLIDOS:"]
[null,"TELÉFONO:","TELEFONO:",null,null,"CORREO ELECTRÓNICO:"]
["DATOS DEL ALUMNO                           :"]
["NOMBRES :",null,null,null,null,null,null,"GRADO Y SECCIÓN :"]
[null,"APELLIDOS :",null,null,null,null,null,"ALERGIAS :"]
[]
["IMPORTANTE: ES NECESARIO QUE LOS DATOS SOLICITADOS SEAN LLENADOS DE FORMA CORRECTA TANTO DEL TUTOR COMO DEL ALUMNO(A) . ELEGIR UNICAMENTE  LA OPCIÓN  EN LA FECHA  QUE DESEA EL SERVICIO,DE NO NECESITAR EL SERVICIO UN DÍA NO SELECCIONAR NINGUNA OPCIÓN ESE DÍA . YA QUE EL PROGRAMA CALCULARÁ LA CANTIDAD DE ALMUERZOS ELEGIDOS POR ALUMNO ASÍ COMO EL TOTAL A DEPOSITAR.PARA  REALIZAR  EL PEDIDO PARA UN ALUMNO MÁS DIRIGIRSE A LA SIGUIENTE HOJA ELECTRÓNICA.\nEN CADA HOJA ELECTRÓNICA DEBE DE HABER SOLO UN ALUMNO.\nNO RE-ENVIAR SIN HABER GUARDADO EL DOCUMENTO DESPUÉS DE HECHA LA SELECCIÓN"]
[]
[]
["Opción","Lunes",null,"Martes",null,"Miércoles",null,"Jueves",null,"Viernes"]
[null,{"$f":"menu!A3","v":"1 de junio"},null,{"$f":"menu!A10","v":"2 de junio"},null,{"$f":"menu!A17","v":"3 de junio"},null,{"$f":"menu!A24","v":"4 de junio"},null,{"$f":"menu!A31","v":"5 de junio"}]
[null,null,null,null,null," "]
["Entrada",{"$f":"menu!C3","v":"Ensalada de Pepino"},null,{"$f":"menu!C10","v":"Pan al ajo"},null,{"$f":"menu!C17","v":"Mini crepe de tomate y albahaca"},null,{"$f":"menu!C24","v":"Wantan/tamarindo"},null,{"$f":"menu!C31","v":"Ensalada de fideos"}]
["A",{"$f":"menu!C4","v":"Ají de gallina /arroz blanco"},null,{"$f":"menu!C11","v":"Canutos al pesto/hamburguesa de res"},null,{"$f":"menu!C18","v":"Puré de pallares guisados con pollo / arroz con verduras"},null,{"$f":"menu!C25","v":"Papita Rellena de pollo/ verduras salteadas"},null,{"$f":"menu!C32","v":"Locro de zapallo guisado con quesito fresco y huevo frito/ arroz blanco"}]
["Z",{"$f":"menu!C5","v":"Lentejitas guisadas con huevito al grill/arroz primavera"},null,{"$f":"menu!C12","v":"Pollito a la Coca-Cola / arroz con verduras"},null,{"$f":"menu!C19","v":"Milanesa de pescado/arroz con choclo/salsa tártara"},null,{"$f":"menu!C26","v":"Arroz Chaufa Fusión de pollo"},null,{"$f":"menu!C33","v":"Estofado de pollo / arroz blanco"}]
["D",{"$f":"menu!C6","v":"Ensalada César con pollo al grill"},null,{"$f":"menu!C13","v":"Ensalada Capresse con pollo al grill"},null,{"$f":"menu!C20","v":"Palta rellena a lo Waldorff (pollo)"},null,{"$f":"menu!C27","v":"Ensalada de Atún"},null,{"$f":"menu!C34","v":"Causa Limeña"}]
["E",{"$f":"menu!C7","v":"Nuggets de pollo al horno/papitas"},null,{"$f":"menu!C14","v":"Pizzadillas de jamón y queso / mini César"},null,{"$f":"menu!C21","v":"Alitas / tequeños con guacamole"},null,{"$f":"menu!C28","v":"Happy Lunch Cheeseburger /papitas"},null,{"$f":"menu!C35","v":"Dedos de pollo /puré"}]
["Postre",{"$f":"menu!C8","v":"Fruta de Estación"},null,{"$f":"menu!C15","v":"Mini Churros de manjar"},null,{"$f":"menu!C22","v":"Gelatina con fruta"},null,{"$f":"menu!C29","v":"Pionono de manjar"},null,{"$f":"menu!C36","v":"Delicia de Fruta"}]
["Refresco",{"$f":"menu!C9","v":"Limonada"},null,{"$f":"menu!C16","v":"Chicha morada"},null,{"$f":"menu!C23","v":"Maracuyá"},null,{"$f":"menu!C30","v":"Naranjada"},null,{"$f":"menu!C37","v":"Chicha morada"}]
[]
["Opción",{"$f":"menu!A38","v":"8 de junio"},null,{"$f":"menu!A45","v":"9 de junio"},null,{"$f":"menu!A52","v":"10 de junio"},null,{"$f":"menu!A59","v":"11 de junio"},null,{"$f":"menu!A66","v":"12 de junio"}]
[null," ",null," ",null," ",null," ",null," "]
["Entrada",{"$f":"menu!C38","v":"Mini Causita"},null,{"$f":"menu!C45","v":"Pan al ajo"},null,{"$f":"menu!C52","v":"Choclito en salsa de ocopa"},null,{"$f":"menu!C59","v":"Crema de zapallo"},null,{"$f":"menu!C66","v":"Ensalada fresca"}]
["A",{"$f":"menu!C39","v":"Seco de pollo / arroz blanco"},null,{"$f":"menu!C46","v":"Cordon Bleu / arroz con verduras"},null,{"$f":"menu!C53","v":"Lomito saltado"},null,{"$f":"menu!C60","v":"Filete de pollo en salsa BBQ con papas al horno / verduras salteadas"},null,{"$f":"menu!C67","v":"Papita rellena / salsa criolla / arroz blanco"}]
["Z",{"$f":"menu!C40","v":"Frijoles rojos batidos guisados con res / arroz con verduras"},null,{"$f":"menu!C47","v":"Lasagna a la Bolognesa"},null,{"$f":"menu!C54","v":"Spaghetti en salsa de tuco de pollo"},null,{"$f":"menu!C61","v":"Arvejitas verdes guisadas con carne / arroz blanco"},null,{"$f":"menu!C68","v":"Quinua guisada con quesito fresco y brócoli"}]
["D",{"$f":"menu!C41","v":"Ensalada César con pollo al grill"},null,{"$f":"menu!C48","v":"Ensalada Rusa con betarraga y pollito al grill"},null,{"$f":"menu!C55","v":"Ensalada Criolla con pavo al horno"},null,{"$f":"menu!C62","v":"Ensalada de pollo mechado"},null,{"$f":"menu!C69","v":"Palta rellena a la Reina"}]
["E",{"$f":"menu!C42","v":"Nuggets de pollo al horno/papitas"},null,{"$f":"menu!C49","v":"Pizza casera de pollo y jamón /ensalada de espinacas"},null,{"$f":"menu!C56","v":"Alitas BBQ / encamotados de quinua"},null,{"$f":"menu!C63","v":"Happy Lunch Quesadillas Mexicanas de pollo / nachos con guacamole"},null,{"$f":"menu!C70","v":"Dedos de pollo / tequeños"}]
["Postre",{"$f":"menu!C43","v":"Gelatina con fruta"},null,{"$f":"menu!C50","v":"Blondie"},null,{"$f":"menu!C57","v":"Fruta de Estación"},null,{"$f":"menu!C64","v":"Bombitas HL"},null,{"$f":"menu!C71","v":"Barquillos con chocolate"}]
["Refresco",{"$f":"menu!C44","v":"Limonada"},null,{"$f":"menu!C51","v":"Maracuyá"},null,{"$f":"menu!C58","v":"Chicha morada"},null,{"$f":"menu!C65","v":"Limonada"},null,{"$f":"menu!C72","v":"Limonada"}]
[]
["Opción",{"$f":"menu!A73","v":"15 de junio"},null,{"$f":"menu!A80","v":"16 de junio"},null,{"$f":"menu!A87","v":"17 de junio"},null,{"$f":"menu!A94","v":"18 de junio"},null,{"$f":"menu!A101","v":"19 de junio"}]
[null," ",null," ",null," ",null," ",null," "]
["Entrada",{"$f":"menu!C73","v":"Ensalada Bruschetta"},null,{"$f":"menu!C80","v":"Bolicausitas en salsa huancaina"},null,{"$f":"menu!C87","v":"Crema de zapallo"},null,{"$f":"menu!C94","v":"Bombitas a la Diabla de espinaca"},null,{"$f":"menu!C101","v":"Mini Quesadilla"}]
["A",{"$f":"menu!C74","v":"Arroz Tapado /plátano al grill"},null,{"$f":"menu!C81","v":"Arroz con pollo"},null,{"$f":"menu!C88","v":"Pavito al horno / puré de espinaca/ arroz "},null,{"$f":"menu!C95","v":"Trigo guisado con queso / arroz con verduras"},null,{"$f":"menu!C102","v":"Albondigas a la Napolitana / arroz primavera"}]
["Z",{"$f":"menu!C75","v":"Lentejitas guisadas con huevito al grill/arroz primavera"},null,{"$f":"menu!C82","v":"Dedos de pescado / arroz con choclo /salsa tártara"},null,{"$f":"menu!C89","v":"Panamitos guisados con huevito al grill / arroz con verduras"},null,{"$f":"menu!C96","v":"Pollito saltado / arroz blanco"},null,{"$f":"menu!C103","v":"Pollito al horno / puré de papa amarilla/ arroz blanco"}]
["D",{"$f":"menu!C76","v":"Super Triple Integral Clásico / Chifles caseros"},null,{"$f":"menu!C83","v":"Ensalada Cheff"},null,{"$f":"menu!C90","v":"Ensalada Mexicana Quesadilla"},null,{"$f":"menu!C97","v":"Ensalada Criolla con pollito al grill"},null,{"$f":"menu!C104","v":"Ensalada Cobb"}]
["E",{"$f":"menu!C77","v":"Nuggets al horno / choclito con queso"},null,{"$f":"menu!C84","v":"Pizzadillas de jamón y queso / mini César"},null,{"$f":"menu!C91","v":"Dedos de pollo / papitas duquezas"},null,{"$f":"menu!C98","v":"Wrap de Pollo y palta/Hojuelas"},null,{"$f":"menu!C105","v":"Happy Lunch Cheeseburger /papitas"}]
["Postre",{"$f":"menu!C78","v":"Fruta de Estación"},null,{"$f":"menu!C85","v":"Mini  relampago de chocolate"},null,{"$f":"menu!C92","v":"Gelatina con fruta"},null,{"$f":"menu!C99","v":"Delicia de Fruta"},null,{"$f":"menu!C106","v":"Bombitas HL"}]
["Refresco",{"$f":"menu!C79","v":"Limonada"},null,{"$f":"menu!C86","v":"Chicha morada"},null,{"$f":"menu!C93","v":"Naranjada"},null,{"$f":"menu!C100","v":"Limonada"},null,{"$f":"menu!C107","v":"Maracuyá"}]
[]
["Opción",{"$f":"menu!A108","v":"22 de junio"},null,{"$f":"menu!A115","v":"23 de junio"},null,{"$f":"menu!A122","v":"24 de junio"},null,{"$f":"menu!A129","v":"25 de junio"},null,{"$f":"menu!A136","v":"26 de junio"}]
[null," ",null," ",null," ",null," ",null," "]
["Entrada",{"$f":"menu!C108","v":"choclito con queso"},null,{"$f":"menu!C115","v":"Ensalada fresca"},null,{"$f":"menu!C122","v":"Huevito a la rusa"},null,{"$f":"menu!C129","v":"Mini César"},null,{"$f":"menu!C136","v":"Tequenos de quinua con queso"}]
["A",{"$f":"menu!C109","v":"Pollo anticuchado con puré de espinacas"},null,{"$f":"menu!C116","v":"Mini Tacu-tacu de Frijol con seco de res"},null,{"$f":"menu!C123","v":"Cau-Cau de pollo / arroz blanco"},null,{"$f":"menu!C130","v":"Vainitas saltadas con carne de res / arroz blanco"},null,{"$f":"menu!C137","v":"Pepian de choclo guisado con pollo / arroz blanco"}]
["Z",{"$f":"menu!C110","v":"Tornillos en salsa bolognesa(con carne)"},null,{"$f":"menu!C117","v":"Pollo a la reina / arroz blanco"},null,{"$f":"menu!C124","v":"Lentejitas guisadas con huevito al grill/arroz primavera"},null,{"$f":"menu!C131","v":"Spaghetti a la carbonara"},null,{"$f":"menu!C138","v":"Estofado de res / arroz blanco"}]
["D",{"$f":"menu!C111","v":"Ensalada César con pollo al grill"},null,{"$f":"menu!C118","v":"Causa Limeña"},null,{"$f":"menu!C125","v":"Quiche de alcachofas / huevito a la rusa sin papa"},null,{"$f":"menu!C132","v":"Ensalada Oriental con pollito al grill"},null,{"$f":"menu!C139","v":"Ensalada Rusa con beterraga y pollito al grill"}]
["E",{"$f":"menu!C112","v":"Nuggets al horno / papitas"},null,{"$f":"menu!C119","v":"Sub de pollo ,lechuga ,tomate y palta / hojuelas de papas caseras"},null,{"$f":"menu!C126","v":"Quesadillas mexicanas de pollo /nachos y guacamole"},null,{"$f":"menu!C133","v":"Dedos de pescado / palitos de yuca al horno"},null,{"$f":"menu!C140","v":"Pizzadillas de jamon y queso / mini César"}]
["Postre",{"$f":"menu!C113","v":"Gelatina con fruta"},null,{"$f":"menu!C120","v":"Alfajor de manjar"},null,{"$f":"menu!C127","v":"muffin de fruta"},null,{"$f":"menu!C134","v":"Fruta de Estación"},null,{"$f":"menu!C141","v":"Brownies"}]
["Refresco",{"$f":"menu!C114","v":"Naranjada"},null,{"$f":"menu!C121","v":"Maracuyá"},null,{"$f":"menu!C128","v":"Chicha morada"},null,{"$f":"menu!C135","v":"Limonada"},null,{"$f":"menu!C142","v":"Chicha morada"}]
[]
["Opción",{"$f":"menu!A143","v":"29 de junio"},null,{"$f":"menu!A150","v":"30 de junio"},null,{"$f":"menu!A157","v":0},null,{"$f":"menu!A164","v":0},null,{"$f":"menu!A171","v":0}]
[null," ",null," ",null," ",null," "]
["Entrada",{"$f":"menu!C143","v":0},null,{"$f":"menu!C150","v":"Wantan/tamarindo"},null,{"$f":"menu!C157","v":0},null,{"$f":"menu!C164","v":0},null,{"$f":"menu!C171","v":0}]
["A","FERIADO",null,{"$f":"menu!C151","v":"Milanesa de pollo al grill con legumbres y arroz"}]
["Z",null,null,{"$f":"menu!C152","v":"Arroz Chaufa Aeropuerto de pollo"}]
["D",null,null,{"$f":"menu!C153","v":"Ensalada César con pollo al grill"}]
["E",null,null,{"$f":"menu!C154","v":"Nuggets al horno con puré de papa amarilla"}]
["Postre",{"$f":"menu!C148","v":0},null,{"$f":"menu!C155","v":"Trufas de chocolate"},null,{"$f":"menu!C162","v":0},null,{"$f":"menu!C169","v":0},null,{"$f":"menu!C176","v":0}]
["Refresco",{"$f":"menu!C149","v":0},null,{"$f":"menu!C156","v":"Limonada"},null,{"$f":"menu!C163","v":0},null,{"$f":"menu!C170","v":0},null,{"$f":"menu!C177","v":0}]
[]
[null,null,null,null,null,null,null,"Limpiar  Pedidos"]
[null,"SI DESEA  EDITAR O REALIZAR UN PEDIDO MÁS HACER CLICK EN ALUMNO 2"]
[null,"SI DESEA  EDITAR O REALIZAR UN PEDIDO MÁS HACER CLICK EN ALUMNO 3"]
[]
["RESUMEN DE PEDIDO TOTAL:"]
["          CORREO ELECTRÓNICO:\n sscc@happylunchesservice.com"]
[]
[]
[]
[]
[]
[]
[]
[]
[]
[]
[]
[]
[]
[]
[]
[]
[]
[]
[]
[]
[]
[]
[]
[]
[]
[]
["HORARIO DE ATENCIÓN AL CLIENTE: TELÉFONOS FIJOS - LUNES A VIERNES DE 7AM - 4PM    CELULARES: 7AM - 4PM"]
["Teléfonos:  445-8009  ó  446-0712         Contacto:  Maite Valdivia: 967759206"]
[]
[]
["Encuentre el menú en :    www.happylunchesservice.com"]

{"sheet":"ALUMNO2","index":1,"n_rows":102,"n_cols":10,"rows_kept":102,"cut":false,"hidden":false,"merged":[[5,1,5,2],[5,3,5,8],[0,3,0,7],[1,3,1,7],[2,0,2,10],[3,0,3,10],[4,0,4,2],[6,1,6,2],[6,3,6,4],[6,6,6,8],[7,0,7,2],[8,0,8,2],[8,3,8,6],[8,8,8,9],[9,1,9,2],[9,3,9,6],[9,8,9,9],[11,0,11,10],[17,1,17,2],[17,3,17,4],[17,5,17,6],[17,7,17,8],[17,9,17,10],[27,1,27,2],[27,3,27,4],[27,5,27,6],[27,7,27,8],[27,9,27,10],[22,2,23,2],[22,4,23,4],[22,6,23,6],[22,8,23,8],[22,10,23,10],[37,1,37,2],[37,3,37,4],[37,5,37,6],[37,7,37,8],[37,9,37,10],[32,2,33,2],[32,4,33,4],[32,6,33,6],[32,8,33,8],[32,10,33,10],[47,1,47,2],[47,3,47,4],[47,5,47,6],[47,7,47,8],[47,9,47,10],[42,2,43,2],[42,4,43,4],[42,6,43,6],[42,8,43,8],[42,10,43,10],[57,1,57,2],[57,3,57,4],[57,5,57,6],[57,7,57,8],[57,9,57,10],[52,2,53,2],[52,4,53,4],[52,6,53,6],[52,8,53,8],[52,10,53,10],[58,7,61,7],[58,9,61,9],[58,5,61,5],[58,1,61,2],[101,0,101,10],[62,2,63,2],[62,4,63,4],[62,6,63,6],[62,8,63,8],[62,10,63,10],[66,1,66,3],[67,1,67,3],[69,0,69,1],[70,0,73,9],[97,0,97,10],[98,0,98,10]]}
[null,null,null,"HAPPY LUNCHES SERVICE"]
[null,null,null,"SANTA MARIA PRIMARIA\n (5to Y 6to GRADO)"]
["BCP Cuenta Corriente Soles:  194-1894682000                                                                  Cód. Cta. Interbancario BCP:  002 194 001894682000 90  "]
["FAVOR ENVIAR VOUCHER O TRANSFERENCIA ELECTRÓNICA A NUESTRO E-MAIL UNA VEZ REALIZADO EL ABONO EN NUESTRA CUENTA. GRACIAS POR SU COLABORACIÓN."]
[" DATOS DEL PADRE O APODERADO :"]
[null,"NOMBRES Y APELLIDOS:"]
[null,"TELEFONO:","TELEFONO:",null,null,"CORREO ELECTRONICO:"]
["DATOS DEL ALUMNO       N°      2             :"]
["NOMBRES :",null,null,null,null,null,null,"GRADO Y SECCION :"]
[null,"APELLIDOS :",null,null,null,null,null,"ALERGIAS :"]
[]
["IMPORTANTE: ES NECESARIO QUE LOS DATOS SOLICITADOS SEAN LLENADOS DE FORMA CORRECTA TANTO DEL TUTOR COMO DEL ALUMNO(A) . ELEGIR UNICAMENTE  LA OPCIÓN  EN LA FECHA  QUE DESEA EL SERVICIO,DE NO NECESITAR EL SERVICIO UN DÍA NO SELECCIONAR NINGUNA OPCIÓN ESE DÍA . YA QUE EL PROGRAMA CALCULARÁ LA CANTIDAD DE ALMUERZOS ELEGIDOS POR ALUMNO ASÍ COMO EL TOTAL A DEPOSITAR.PARA  REALIZAR  EL PEDIDO PARA UN ALUMNO MÁS DIRIGIRSE A LA SIGUIENTE HOJA ELECTRÓNICA.\nEN CADA HOJA ELECTRÓNICA DEBE DE HABER SOLO UN ALUMNO.\nNO RE-ENVIAR SIN HABER GUARDADO EL DOCUMENTO DESPUÉS DE HECHA LA SELECCIÓN"]
[]
[]
["Opción","Lunes",null,"Martes",null,"Miércoles",null,"Jueves",null,"Viernes"]
[null,{"$f":"menu!A3","v":"1 de junio"},null,{"$f":"menu!A10","v":"2 de junio"},null,{"$f":"menu!A17","v":"3 de junio"},null,{"$f":"menu!A24","v":"4 de junio"},null,{"$f":"menu!A31","v":"5 de junio"}]
[null,null,null,null,null," "]
["Entrada",{"$f":"menu!C3","v":"Ensalada de Pepino"},null,{"$f":"menu!C10","v":"Pan al ajo"},null,{"$f":"menu!C17","v":"Mini crepe de tomate y albahaca"},null,{"$f":"menu!C24","v":"Wantan/tamarindo"},null,{"$f":"menu!C31","v":"Ensalada de fideos"}]
["A",{"$f":"menu!C4","v":"Ají de gallina /arroz blanco"},null,{"$f":"menu!C11","v":"Canutos al pesto/hamburguesa de res"},null,{"$f":"menu!C18","v":"Puré de pallares guisados con pollo / arroz con verduras"},null,{"$f":"menu!C25","v":"Papita Rellena de pollo/ verduras salteadas"},null,{"$f":"menu!C32","v":"Locro de zapallo guisado con quesito fresco y huevo frito/ arroz blanco"}]
["Z",{"$f":"menu!C5","v":"Lentejitas guisadas con huevito al grill/arroz primavera"},null,{"$f":"menu!C12","v":"Pollito a la Coca-Cola / arroz con verduras"},null,{"$f":"menu!C19","v":"Milanesa de pescado/arroz con choclo/salsa tártara"},null,{"$f":"menu!C26","v":"Arroz Chaufa Fusión de pollo"},null,{"$f":"menu!C33","v":"Estofado de pollo / arroz blanco"}]
["D",{"$f":"menu!C6","v":"Ensalada César con pollo al grill"},null,{"$f":"menu!C13","v":"Ensalada Capresse con pollo al grill"},null,{"$f":"menu!C20","v":"Palta rellena a lo Waldorff (pollo)"},null,{"$f":"menu!C27","v":"Ensalada de Atún"},null,{"$f":"menu!C34","v":"Causa Limeña"}]
["E",{"$f":"menu!C7","v":"Nuggets de pollo al horno/papitas"},null,{"$f":"menu!C14","v":"Pizzadillas de jamón y queso / mini César"},null,{"$f":"menu!C21","v":"Alitas / tequeños con guacamole"},null,{"$f":"menu!C28","v":"Happy Lunch Cheeseburger /papitas"},null,{"$f":"menu!C35","v":"Dedos de pollo /puré"}]
["Postre",{"$f":"menu!C8","v":"Fruta de Estación"},null,{"$f":"menu!C15","v":"Mini Churros de manjar"},null,{"$f":"menu!C22","v":"Gelatina con fruta"},null,{"$f":"menu!C29","v":"Pionono de manjar"},null,{"$f":"menu!C36","v":"Delicia de Fruta"}]
["Refresco",{"$f":"menu!C9","v":"Limonada"},null,{"$f":"menu!C16","v":"Chicha morada"},null,{"$f":"menu!C23","v":"Maracuyá"},null,{"$f":"menu!C30","v":"Naranjada"},null,{"$f":"menu!C37","v":"Chicha morada"}]
[]
["Opción",{"$f":"menu!A38","v":"8 de junio"},null,{"$f":"menu!A45","v":"9 de junio"},null,{"$f":"menu!A52","v":"10 de junio"},null,{"$f":"menu!A59","v":"11 de junio"},null,{"$f":"menu!A66","v":"12 de junio"}]
[null," ",null," ",null," ",null," ",null," "]
["Entrada",{"$f":"menu!C38","v":"Mini Causita"},null,{"$f":"menu!C45","v":"Pan al ajo"},null,{"$f":"menu!C52","v":"Choclito en salsa de ocopa"},null,{"$f":"menu!C59","v":"Crema de zapallo"},null,{"$f":"menu!C66","v":"Ensalada fresca"}]
["A",{"$f":"menu!C39","v":"Seco de pollo / arroz blanco"},null,{"$f":"menu!C46","v":"Cordon Bleu / arroz con verduras"},null,{"$f":"menu!C53","v":"Lomito saltado"},null,{"$f":"menu!C60","v":"Filete de pollo en salsa BBQ con papas al horno / verduras salteadas"},null,{"$f":"menu!C67","v":"Papita rellena / salsa criolla / arroz blanco"}]
["Z",{"$f":"menu!C40","v":"Frijoles rojos batidos guisados con res / arroz con verduras"},null,{"$f":"menu!C47","v":"Lasagna a la Bolognesa"},null,{"$f":"menu!C54","v":"Spaghetti en salsa de tuco de pollo"},null,{"$f":"menu!C61","v":"Arvejitas verdes guisadas con carne / arroz blanco"},null,{"$f":"menu!C68","v":"Quinua guisada con quesito fresco y brócoli"}]
["D",{"$f":"menu!C41","v":"Ensalada César con pollo al grill"},null,{"$f":"menu!C48","v":"Ensalada Rusa con betarraga y pollito al grill"},null,{"$f":"menu!C55","v":"Ensalada Criolla con pavo al horno"},null,{"$f":"menu!C62","v":"Ensalada de pollo mechado"},null,{"$f":"menu!C69","v":"Palta rellena a la Reina"}]
["E",{"$f":"menu!C42","v":"Nuggets de pollo al horno/papitas"},null,{"$f":"menu!C49","v":"Pizza casera de pollo y jamón /ensalada de espinacas"},null,{"$f":"menu!C56","v":"Alitas BBQ / encamotados de quinua"},null,{"$f":"menu!C63","v":"Happy Lunch Quesadillas Mexicanas de pollo / nachos con guacamole"},null,{"$f":"menu!C70","v":"Dedos de pollo / tequeños"}]
["Postre",{"$f":"menu!C43","v":"Gelatina con fruta"},null,{"$f":"menu!C50","v":"Blondie"},null,{"$f":"menu!C57","v":"Fruta de Estación"},null,{"$f":"menu!C64","v":"Bombitas HL"},null,{"$f":"menu!C71","v":"Barquillos con chocolate"}]
["Refresco",{"$f":"menu!C44","v":"Limonada"},null,{"$f":"menu!C51","v":"Maracuyá"},null,{"$f":"menu!C58","v":"Chicha morada"},null,{"$f":"menu!C65","v":"Limonada"},null,{"$f":"menu!C72","v":"Limonada"}]
[]
["Opción",{"$f":"menu!A73","v":"15 de junio"},null,{"$f":"menu!A80","v":"16 de junio"},null,{"$f":"menu!A87","v":"17 de junio"},null,{"$f":"menu!A94","v":"18 de junio"},null,{"$f":"menu!A101","v":"19 de junio"}]
[null," ",null," ",null," ",null," ",null," "]
["Entrada",{"$f":"menu!C73","v":"Ensalada Bruschetta"},null,{"$f":"menu!C80","v":"Bolicausitas en salsa huancaina"},null,{"$f":"menu!C87","v":"Crema de zapallo"},null,{"$f":"menu!C94","v":"Bombitas a la Diabla de espinaca"},null,{"$f":"menu!C101","v":"Mini Quesadilla"}]
["A",{"$f":"menu!C74","v":"Arroz Tapado /plátano al grill"},null,{"$f":"menu!C81","v":"Arroz con pollo"},null,{"$f":"menu!C88","v":"Pavito al horno / puré de espinaca/ arroz "},null,{"$f":"menu!C95","v":"Trigo guisado con queso / arroz con verduras"},null,{"$f":"menu!C102","v":"Albondigas a la Napolitana / arroz primavera"}]
["Z",{"$f":"menu!C75","v":"Lentejitas guisadas con huevito al grill/arroz primavera"},null,{"$f":"menu!C82","v":"Dedos de pescado / arroz con choclo /salsa tártara"},null,{"$f":"menu!C89","v":"Panamitos guisados con huevito al grill / arroz con verduras"},null,{"$f":"menu!C96","v":"Pollito saltado / arroz blanco"},null,{"$f":"menu!C103","v":"Pollito al horno / puré de papa amarilla/ arroz blanco"}]
["D",{"$f":"menu!C76","v":"Super Triple Integral Clásico / Chifles caseros"},null,{"$f":"menu!C83","v":"Ensalada Cheff"},null,{"$f":"menu!C90","v":"Ensalada Mexicana Quesadilla"},null,{"$f":"menu!C97","v":"Ensalada Criolla con pollito al grill"},null,{"$f":"menu!C104","v":"Ensalada Cobb"}]
["E",{"$f":"menu!C77","v":"Nuggets al horno / choclito con queso"},null,{"$f":"menu!C84","v":"Pizzadillas de jamón y queso / mini César"},null,{"$f":"menu!C91","v":"Dedos de pollo / papitas duquezas"},null,{"$f":"menu!C98","v":"Wrap de Pollo y palta/Hojuelas"},null,{"$f":"menu!C105","v":"Happy Lunch Cheeseburger /papitas"}]
["Postre",{"$f":"menu!C78","v":"Fruta de Estación"},null,{"$f":"menu!C85","v":"Mini  relampago de chocolate"},null,{"$f":"menu!C92","v":"Gelatina con fruta"},null,{"$f":"menu!C99","v":"Delicia de Fruta"},null,{"$f":"menu!C106","v":"Bombitas HL"}]
["Refresco",{"$f":"menu!C79","v":"Limonada"},null,{"$f":"menu!C86","v":"Chicha morada"},null,{"$f":"menu!C93","v":"Naranjada"},null,{"$f":"menu!C100","v":"Limonada"},null,{"$f":"menu!C107","v":"Maracuyá"}]
[]
["Opción",{"$f":"menu!A108","v":"22 de junio"},null,{"$f":"menu!A115","v":"23 de junio"},null,{"$f":"menu!A122","v":"24 de junio"},null,{"$f":"menu!A129","v":"25 de junio"},null,{"$f":"menu!A136","v":"26 de junio"}]
[null," ",null," ",null," ",null," ",null," "]
["Entrada",{"$f":"menu!C108","v":"choclito con queso"},null,{"$f":"menu!C115","v":"Ensalada fresca"},null,{"$f":"menu!C122","v":"Huevito a la rusa"},null,{"$f":"menu!C129","v":"Mini César"},null,{"$f":"menu!C136","v":"Tequenos de quinua con queso"}]
["A",{"$f":"menu!C109","v":"Pollo anticuchado con puré de espinacas"},null,{"$f":"menu!C116","v":"Mini Tacu-tacu de Frijol con seco de res"},null,{"$f":"menu!C123","v":"Cau-Cau de pollo / arroz blanco"},null,{"$f":"menu!C130","v":"Vainitas saltadas con carne de res / arroz blanco"},null,{"$f":"menu!C137","v":"Pepian de choclo guisado con pollo / arroz blanco"}]
["Z",{"$f":"menu!C110","v":"Tornillos en salsa bolognesa(con carne)"},null,{"$f":"menu!C117","v":"Pollo a la reina / arroz blanco"},null,{"$f":"menu!C124","v":"Lentejitas guisadas con huevito al grill/arroz primavera"},null,{"$f":"menu!C131","v":"Spaghetti a la carbonara"},null,{"$f":"menu!C138","v":"Estofado de res / arroz blanco"}]
["D",{"$f":"menu!C111","v":"Ensalada César con pollo al grill"},null,{"$f":"menu!C118","v":"Causa Limeña"},null,{"$f":"menu!C125","v":"Quiche de alcachofas / huevito a la rusa sin papa"},null,{"$f":"menu!C132","v":"Ensalada Oriental con pollito al grill"},null,{"$f":"menu!C139","v":"Ensalada Rusa con beterraga y pollito al grill"}]
["E",{"$f":"menu!C112","v":"Nuggets al horno / papitas"},null,{"$f":"menu!C119","v":"Sub de pollo ,lechuga ,tomate y palta / hojuelas de papas caseras"},null,{"$f":"menu!C126","v":"Quesadillas mexicanas de pollo /nachos y guacamole"},null,{"$f":"menu!C133","v":"Dedos de pescado / palitos de yuca al horno"},null,{"$f":"menu!C140","v":"Pizzadillas de jamon y queso / mini César"}]
["Postre",{"$f":"menu!C113","v":"Gelatina con fruta"},null,{"$f":"menu!C120","v":"Alfajor de manjar"},null,{"$f":"menu!C127","v":"muffin de fruta"},null,{"$f":"menu!C134","v":"Fruta de Estación"},null,{"$f":"menu!C141","v":"Brownies"}]
["Refresco",{"$f":"menu!C114","v":"Naranjada"},null,{"$f":"menu!C121","v":"Maracuyá"},null,{"$f":"menu!C128","v":"Chicha morada"},null,{"$f":"menu!C135","v":"Limonada"},null,{"$f":"menu!C142","v":"Chicha morada"}]
[]
["Opción",{"$f":"menu!A143","v":"29 de junio"},null,{"$f":"menu!A150","v":"30 de junio"},null,{"$f":"menu!A157","v":0},null,{"$f":"menu!A164","v":0},null,{"$f":"menu!A171","v":0}]
[null," ",null," ",null," ",null," "]
["Entrada",{"$f":"menu!C143","v":0},null,{"$f":"menu!C150","v":"Wantan/tamarindo"},null,{"$f":"menu!C157","v":0},null,{"$f":"menu!C164","v":0},null,{"$f":"menu!C171","v":0}]
["A","FERIADO",null,{"$f":"menu!C151","v":"Milanesa de pollo al grill con legumbres y arroz"},null,{"$f":"menu!C158","v":0},null,{"$f":"menu!C165","v":0},null,{"$f":"menu!C172","v":0}]
["Z",null,null,{"$f":"menu!C152","v":"Arroz Chaufa Aeropuerto de pollo"},null,{"$f":"menu!C159","v":0},null,{"$f":"menu!C166","v":"feriado"},null,{"$f":"menu!C173","v":"feriado"}]
["D",null,null,{"$f":"menu!C153","v":"Ensalada César con pollo al grill"},null,{"$f":"menu!C160","v":0},null,{"$f":"menu!C167","v":0},null,{"$f":"menu!C174","v":0}]
["E",null,null,{"$f":"menu!C154","v":"Nuggets al horno con puré de papa amarilla"},null,{"$f":"menu!C161","v":0},null,{"$f":"menu!C168","v":0},null,{"$f":"menu!C175","v":0}]
["Postre",null,null,{"$f":"menu!C155","v":"Trufas de chocolate"},null,{"$f":"menu!C162","v":0},null,{"$f":"menu!C169","v":0},null,{"$f":"menu!C176","v":0}]
["Refresco",null,null,{"$f":"menu!C156","v":"Limonada"},null,{"$f":"menu!C163","v":0},null,{"$f":"menu!C170","v":0},null,{"$f":"menu!C177","v":0}]
[]
[null,null,null,null,null,null,null,"Limpiar  Pedidos"]
[null,"SI DESEA  EDITAR O REALIZAR UN PEDIDO MAS HACER CLICK EN ALUMNO 3"]
[null,"SI FINALIZO DAR CLIK EN REGRESAR"]
[]
["RESUMEN DE PEDIDO TOTAL:"]
["          CORREO ELECTRÓNICO:\n sscc@happylunchesservice.com"]
[]
[]
[]
[]
[]
[]
[]
[]
[]
[]
[]
[]
[]
[]
[]
[]
[]
[]
[]
[]
[]
[]
[]
[]
[]
[]
["HORARIO DE ATENCIÓN AL CLIENTE: TELÉFONOS FIJOS - LUNES A VIERNES DE 7AM - 4PM    CELULARES: 7AM - 4PM"]
["Teléfonos:  445-8009  ó  446-0712         Contacto: Maite Valdivia: 967759206"]
[]
[]
["Encuentre el menú en :    www.happylunchesservice.com"]

{"sheet":"ALUMNO3","index":2,"n_rows":101,"n_cols":10,"rows_kept":101,"cut":false,"hidden":false,"merged":[[5,1,5,2],[5,3,5,8],[0,3,0,7],[1,3,1,7],[2,0,2,10],[3,0,3,10],[4,0,4,2],[6,1,6,2],[6,3,6,4],[6,6,6,8],[7,0,7,2],[8,0,8,2],[8,3,8,6],[8,8,8,9],[9,1,9,2],[9,3,9,6],[9,8,9,9],[11,0,11,10],[17,1,17,2],[17,3,17,4],[17,5,17,6],[17,7,17,8],[17,9,17,10],[27,1,27,2],[27,3,27,4],[27,5,27,6],[27,7,27,8],[27,9,27,10],[22,2,23,2],[22,4,23,4],[22,6,23,6],[22,8,23,8],[22,10,23,10],[37,1,37,2],[37,3,37,4],[37,5,37,6],[37,7,37,8],[37,9,37,10],[32,2,33,2],[32,4,33,4],[32,6,33,6],[32,8,33,8],[32,10,33,10],[47,1,47,2],[47,3,47,4],[47,5,47,6],[47,7,47,8],[47,9,47,10],[42,2,43,2],[42,4,43,4],[42,6,43,6],[42,8,43,8],[42,10,43,10],[52,10,53,10],[57,1,57,2],[57,3,57,4],[57,5,57,6],[57,7,57,8],[57,9,57,10],[52,2,53,2],[52,4,53,4],[52,6,53,6],[52,8,53,8],[100,0,100,10],[62,10,63,10],[68,0,68,1],[69,0,72,9],[96,0,96,10],[97,0,97,10],[66,1,66,3],[58,5,61,5],[58,7,61,7],[58,9,61,9],[58,1,61,2],[62,2,63,2],[62,4,63,4],[62,6,63,6],[62,8,63,8]]}
[null,null,null,"HAPPY LUNCHES SERVICE"]
[null,null,null,"SANTA MARIA PRIMARIA\n (5to Y 6to GRADO)"]
["BCP Cuenta Corriente Soles:  194-1894682000                                                                  Cód. Cta. Interbancario BCP:  002 194 001894682000 90  "]
["FAVOR ENVIAR VOUCHER O TRANSFERENCIA ELECTRÓNICA A NUESTRO E-MAIL UNA VEZ REALIZADO EL ABONO EN NUESTRA CUENTA. GRACIAS POR SU COLABORACIÓN."]
[" DATOS DEL PADRE O APODERADO :"]
[null,"NOMBRES Y APELLIDOS:"]
[null,"TELEFONO:","TELEFONO:",null,null,"CORREO ELECTRONICO:"]
["DATOS DEL ALUMNO       N°      3             :"]
["NOMBRES :",null,null,null,null,null,null,"GRADO Y SECCION :"]
[null,"APELLIDOS :",null,null,null,null,null,"ALERGIAS :"]
[]
["IMPORTANTE: ES NECESARIO QUE LOS DATOS SOLICITADOS SEAN LLENADOS DE FORMA CORRECTA TANTO DEL TUTOR COMO DEL ALUMNO(A) . ELEGIR UNICAMENTE  LA OPCIÓN  EN LA FECHA  QUE DESEA EL SERVICIO,DE NO NECESITAR EL SERVICIO UN DÍA NO SELECCIONAR NINGUNA OPCIÓN ESE DÍA . YA QUE EL PROGRAMA CALCULARÁ LA CANTIDAD DE ALMUERZOS ELEGIDOS POR ALUMNO ASÍ COMO EL TOTAL A DEPOSITAR.PARA  REALIZAR  EL PEDIDO PARA UN ALUMNO MÁS DIRIGIRSE A LA SIGUIENTE HOJA ELECTRÓNICA.\nEN CADA HOJA ELECTRÓNICA DEBE DE HABER SOLO UN ALUMNO.\nNO RE-ENVIAR SIN HABER GUARDADO EL DOCUMENTO DESPUÉS DE HECHA LA SELECCIÓN"]
[]
[]
["Opción","Lunes",null,"Martes",null,"Miércoles",null,"Jueves",null,"Viernes"]
[null,{"$f":"menu!A3","v":"1 de junio"},null,{"$f":"menu!A10","v":"2 de junio"},null,{"$f":"menu!A17","v":"3 de junio"},null,{"$f":"menu!A24","v":"4 de junio"},null,{"$f":"menu!A31","v":"5 de junio"}]
[null,null,null,null,null," "]
["Entrada",{"$f":"menu!C3","v":"Ensalada de Pepino"},null,{"$f":"menu!C10","v":"Pan al ajo"},null,{"$f":"menu!C17","v":"Mini crepe de tomate y albahaca"},null,{"$f":"menu!C24","v":"Wantan/tamarindo"},null,{"$f":"menu!C31","v":"Ensalada de fideos"}]
["A",{"$f":"menu!C4","v":"Ají de gallina /arroz blanco"},null,{"$f":"menu!C11","v":"Canutos al pesto/hamburguesa de res"},null,{"$f":"menu!C18","v":"Puré de pallares guisados con pollo / arroz con verduras"},null,{"$f":"menu!C25","v":"Papita Rellena de pollo/ verduras salteadas"},null,{"$f":"menu!C32","v":"Locro de zapallo guisado con quesito fresco y huevo frito/ arroz blanco"}]
["Z",{"$f":"menu!C5","v":"Lentejitas guisadas con huevito al grill/arroz primavera"},null,{"$f":"menu!C12","v":"Pollito a la Coca-Cola / arroz con verduras"},null,{"$f":"menu!C19","v":"Milanesa de pescado/arroz con choclo/salsa tártara"},null,{"$f":"menu!C26","v":"Arroz Chaufa Fusión de pollo"},null,{"$f":"menu!C33","v":"Estofado de pollo / arroz blanco"}]
["D",{"$f":"menu!C6","v":"Ensalada César con pollo al grill"},null,{"$f":"menu!C13","v":"Ensalada Capresse con pollo al grill"},null,{"$f":"menu!C20","v":"Palta rellena a lo Waldorff (pollo)"},null,{"$f":"menu!C27","v":"Ensalada de Atún"},null,{"$f":"menu!C34","v":"Causa Limeña"}]
["E",{"$f":"menu!C7","v":"Nuggets de pollo al horno/papitas"},null,{"$f":"menu!C14","v":"Pizzadillas de jamón y queso / mini César"},null,{"$f":"menu!C21","v":"Alitas / tequeños con guacamole"},null,{"$f":"menu!C28","v":"Happy Lunch Cheeseburger /papitas"},null,{"$f":"menu!C35","v":"Dedos de pollo /puré"}]
["Postre",{"$f":"menu!C8","v":"Fruta de Estación"},null,{"$f":"menu!C15","v":"Mini Churros de manjar"},null,{"$f":"menu!C22","v":"Gelatina con fruta"},null,{"$f":"menu!C29","v":"Pionono de manjar"},null,{"$f":"menu!C36","v":"Delicia de Fruta"}]
["Refresco",{"$f":"menu!C9","v":"Limonada"},null,{"$f":"menu!C16","v":"Chicha morada"},null,{"$f":"menu!C23","v":"Maracuyá"},null,{"$f":"menu!C30","v":"Naranjada"},null,{"$f":"menu!C37","v":"Chicha morada"}]
[]
["Opción",{"$f":"menu!A38","v":"8 de junio"},null,{"$f":"menu!A45","v":"9 de junio"},null,{"$f":"menu!A52","v":"10 de junio"},null,{"$f":"menu!A59","v":"11 de junio"},null,{"$f":"menu!A66","v":"12 de junio"}]
[null," ",null," ",null," ",null," ",null," "]
["Entrada",{"$f":"menu!C38","v":"Mini Causita"},null,{"$f":"menu!C45","v":"Pan al ajo"},null,{"$f":"menu!C52","v":"Choclito en salsa de ocopa"},null,{"$f":"menu!C59","v":"Crema de zapallo"},null,{"$f":"menu!C66","v":"Ensalada fresca"}]
["A",{"$f":"menu!C39","v":"Seco de pollo / arroz blanco"},null,{"$f":"menu!C46","v":"Cordon Bleu / arroz con verduras"},null,{"$f":"menu!C53","v":"Lomito saltado"},null,{"$f":"menu!C60","v":"Filete de pollo en salsa BBQ con papas al horno / verduras salteadas"},null,{"$f":"menu!C67","v":"Papita rellena / salsa criolla / arroz blanco"}]
["Z",{"$f":"menu!C40","v":"Frijoles rojos batidos guisados con res / arroz con verduras"},null,{"$f":"menu!C47","v":"Lasagna a la Bolognesa"},null,{"$f":"menu!C54","v":"Spaghetti en salsa de tuco de pollo"},null,{"$f":"menu!C61","v":"Arvejitas verdes guisadas con carne / arroz blanco"},null,{"$f":"menu!C68","v":"Quinua guisada con quesito fresco y brócoli"}]
["D",{"$f":"menu!C41","v":"Ensalada César con pollo al grill"},null,{"$f":"menu!C48","v":"Ensalada Rusa con betarraga y pollito al grill"},null,{"$f":"menu!C55","v":"Ensalada Criolla con pavo al horno"},null,{"$f":"menu!C62","v":"Ensalada de pollo mechado"},null,{"$f":"menu!C69","v":"Palta rellena a la Reina"}]
["E",{"$f":"menu!C42","v":"Nuggets de pollo al horno/papitas"},null,{"$f":"menu!C49","v":"Pizza casera de pollo y jamón /ensalada de espinacas"},null,{"$f":"menu!C56","v":"Alitas BBQ / encamotados de quinua"},null,{"$f":"menu!C63","v":"Happy Lunch Quesadillas Mexicanas de pollo / nachos con guacamole"},null,{"$f":"menu!C70","v":"Dedos de pollo / tequeños"}]
["Postre",{"$f":"menu!C43","v":"Gelatina con fruta"},null,{"$f":"menu!C50","v":"Blondie"},null,{"$f":"menu!C57","v":"Fruta de Estación"},null,{"$f":"menu!C64","v":"Bombitas HL"},null,{"$f":"menu!C71","v":"Barquillos con chocolate"}]
["Refresco",{"$f":"menu!C44","v":"Limonada"},null,{"$f":"menu!C51","v":"Maracuyá"},null,{"$f":"menu!C58","v":"Chicha morada"},null,{"$f":"menu!C65","v":"Limonada"},null,{"$f":"menu!C72","v":"Limonada"}]
[]
["Opción",{"$f":"menu!A73","v":"15 de junio"},null,{"$f":"menu!A80","v":"16 de junio"},null,{"$f":"menu!A87","v":"17 de junio"},null,{"$f":"menu!A94","v":"18 de junio"},null,{"$f":"menu!A101","v":"19 de junio"}]
[null," ",null," ",null," ",null," ",null," "]
["Entrada",{"$f":"menu!C73","v":"Ensalada Bruschetta"},null,{"$f":"menu!C80","v":"Bolicausitas en salsa huancaina"},null,{"$f":"menu!C87","v":"Crema de zapallo"},null,{"$f":"menu!C94","v":"Bombitas a la Diabla de espinaca"},null,{"$f":"menu!C101","v":"Mini Quesadilla"}]
["A",{"$f":"menu!C74","v":"Arroz Tapado /plátano al grill"},null,{"$f":"menu!C81","v":"Arroz con pollo"},null,{"$f":"menu!C88","v":"Pavito al horno / puré de espinaca/ arroz "},null,{"$f":"menu!C95","v":"Trigo guisado con queso / arroz con verduras"},null,{"$f":"menu!C102","v":"Albondigas a la Napolitana / arroz primavera"}]
["Z",{"$f":"menu!C75","v":"Lentejitas guisadas con huevito al grill/arroz primavera"},null,{"$f":"menu!C82","v":"Dedos de pescado / arroz con choclo /salsa tártara"},null,{"$f":"menu!C89","v":"Panamitos guisados con huevito al grill / arroz con verduras"},null,{"$f":"menu!C96","v":"Pollito saltado / arroz blanco"},null,{"$f":"menu!C103","v":"Pollito al horno / puré de papa amarilla/ arroz blanco"}]
["D",{"$f":"menu!C76","v":"Super Triple Integral Clásico / Chifles caseros"},null,{"$f":"menu!C83","v":"Ensalada Cheff"},null,{"$f":"menu!C90","v":"Ensalada Mexicana Quesadilla"},null,{"$f":"menu!C97","v":"Ensalada Criolla con pollito al grill"},null,{"$f":"menu!C104","v":"Ensalada Cobb"}]
["E",{"$f":"menu!C77","v":"Nuggets al horno / choclito con queso"},null,{"$f":"menu!C84","v":"Pizzadillas de jamón y queso / mini César"},null,{"$f":"menu!C91","v":"Dedos de pollo / papitas duquezas"},null,{"$f":"menu!C98","v":"Wrap de Pollo y palta/Hojuelas"},null,{"$f":"menu!C105","v":"Happy Lunch Cheeseburger /papitas"}]
["Postre",{"$f":"menu!C78","v":"Fruta de Estación"},null,{"$f":"menu!C85","v":"Mini  relampago de chocolate"},null,{"$f":"menu!C92","v":"Gelatina con fruta"},null,{"$f":"menu!C99","v":"Delicia de Fruta"},null,{"$f":"menu!C106","v":"Bombitas HL"}]
["Refresco",{"$f":"menu!C79","v":"Limonada"},null,{"$f":"menu!C86","v":"Chicha morada"},null,{"$f":"menu!C93","v":"Naranjada"},null,{"$f":"menu!C100","v":"Limonada"},null,{"$f":"menu!C107","v":"Maracuyá"}]
[]
["Opción",{"$f":"menu!A108","v":"22 de junio"},null,{"$f":"menu!A115","v":"23 de junio"},null,{"$f":"menu!A122","v":"24 de junio"},null,{"$f":"menu!A129","v":"25 de junio"},null,{"$f":"menu!A136","v":"26 de junio"}]
[null," ",null," ",null," ",null," ",null," "]
["Entrada",{"$f":"menu!C108","v":"choclito con queso"},null,{"$f":"menu!C115","v":"Ensalada fresca"},null,{"$f":"menu!C122","v":"Huevito a la rusa"},null,{"$f":"menu!C129","v":"Mini César"},null,{"$f":"menu!C136","v":"Tequenos de quinua con queso"}]
["A",{"$f":"menu!C109","v":"Pollo anticuchado con puré de espinacas"},null,{"$f":"menu!C116","v":"Mini Tacu-tacu de Frijol con seco de res"},null,{"$f":"menu!C123","v":"Cau-Cau de pollo / arroz blanco"},null,{"$f":"menu!C130","v":"Vainitas saltadas con carne de res / arroz blanco"},null,{"$f":"menu!C137","v":"Pepian de choclo guisado con pollo / arroz blanco"}]
["Z",{"$f":"menu!C110","v":"Tornillos en salsa bolognesa(con carne)"},null,{"$f":"menu!C117","v":"Pollo a la reina / arroz blanco"},null,{"$f":"menu!C124","v":"Lentejitas guisadas con huevito al grill/arroz primavera"},null,{"$f":"menu!C131","v":"Spaghetti a la carbonara"},null,{"$f":"menu!C138","v":"Estofado de res / arroz blanco"}]
["D",{"$f":"menu!C111","v":"Ensalada César con pollo al grill"},null,{"$f":"menu!C118","v":"Causa Limeña"},null,{"$f":"menu!C125","v":"Quiche de alcachofas / huevito a la rusa sin papa"},null,{"$f":"menu!C132","v":"Ensalada Oriental con pollito al grill"},null,{"$f":"menu!C139","v":"Ensalada Rusa con beterraga y pollito al grill"}]
["E",{"$f":"menu!C112","v":"Nuggets al horno / papitas"},null,{"$f":"menu!C119","v":"Sub de pollo ,lechuga ,tomate y palta / hojuelas de papas caseras"},null,{"$f":"menu!C126","v":"Quesadillas mexicanas de pollo /nachos y guacamole"},null,{"$f":"menu!C133","v":"Dedos de pescado / palitos de yuca al horno"},null,{"$f":"menu!C140","v":"Pizzadillas de jamon y queso / mini César"}]
["Postre",{"$f":"menu!C113","v":"Gelatina con fruta"},null,{"$f":"menu!C120","v":"Alfajor de manjar"},null,{"$f":"menu!C127","v":"muffin de fruta"},null,{"$f":"menu!C134","v":"Fruta de Estación"},null,{"$f":"menu!C141","v":"Brownies"}]
["Refresco",{"$f":"menu!C114","v":"Naranjada"},null,{"$f":"menu!C121","v":"Maracuyá"},null,{"$f":"menu!C128","v":"Chicha morada"},null,{"$f":"menu!C135","v":"Limonada"},null,{"$f":"menu!C142","v":"Chicha morada"}]
[]
["Opción",{"$f":"menu!A143","v":"29 de junio"},null,{"$f":"menu!A150","v":"30 de junio"},null,{"$f":"menu!A157","v":0},null,{"$f":"menu!A164","v":0},null,{"$f":"menu!A171","v":0}]
[null," ",null," ",null," ",null," "]
["Entrada",{"$f":"menu!C143","v":0},null,{"$f":"menu!C150","v":"Wantan/tamarindo"},null,{"$f":"menu!C157","v":0},null,{"$f":"menu!C164","v":0},null,{"$f":"menu!C171","v":0}]
["A","FERIADO",null,{"$f":"menu!C151","v":"Milanesa de pollo al grill con legumbres y arroz"},null,{"$f":"menu!C158","v":0},null,{"$f":"menu!C165","v":0},null,{"$f":"menu!C172","v":0}]
["Z",null,null,{"$f":"menu!C152","v":"Arroz Chaufa Aeropuerto de pollo"},null,{"$f":"menu!C159","v":0},null,{"$f":"menu!C166","v":"feriado"},null,{"$f":"menu!C173","v":"feriado"}]
["D",null,null,{"$f":"menu!C153","v":"Ensalada César con pollo al grill"},null,{"$f":"menu!C160","v":0},null,{"$f":"menu!C167","v":0},null,{"$f":"menu!C174","v":0}]
["E",null,null,{"$f":"menu!C154","v":"Nuggets al horno con puré de papa amarilla"},null,{"$f":"menu!C161","v":0},null,{"$f":"menu!C168","v":0},null,{"$f":"menu!C175","v":0}]
["Postre",null,null,{"$f":"menu!C155","v":"Trufas de chocolate"},null,{"$f":"menu!C162","v":0},null,{"$f":"menu!C169","v":0},null,{"$f":"menu!C176","v":0}]
["Refresco",null,null,{"$f":"menu!C156","v":"Limonada"},null,{"$f":"menu!C163","v":0},null,{"$f":"menu!C170","v":0},null,{"$f":"menu!C177","v":0}]
[]
[null,null,null,null,null,null,null,"Limpiar  Pedidos"]
[null,"SI FINALIZO DAR CLIK EN REGRESAR"]
[]
["RESUMEN DE PEDIDO TOTAL:"]
["          CORREO ELECTRÓNICO:\n sscc@happylunchesservice.com"]
[]
[]
[]
[]
[]
[]
[]
[]
[]
[]
[]
[]
[]
[]
[]
[]
[]
[]
[]
[]
[]
[]
[]
[]
[]
[]
["HORARIO DE ATENCIÓN AL CLIENTE: TELÉFONOS FIJOS - LUNES A VIERNES DE 7AM - 4PM    CELULARES: 7AM - 4PM"]
["Teléfonos:  445-8009  ó  446-0712         Contacto:  Maite Valdivia: 967759206"]
[]
[]
["Encuentre el menú en :    www.happylunchesservice.com"]

{"sheet":"Resumen","index":3,"n_rows":12,"n_cols":36,"rows_kept":12,"cut":false,"hidden":false,"merged":[[18,1,18,29],[19,1,19,29],[0,0,1,0],[0,1,1,29],[9,0,11,27]]}
[null,"No se aceptarán nuevos pedidos ni cambios de opción con menos de 03 días (72 horas) de anticipación, excepto dietas por enfermedad"]
[]
["NOMBRES Y APELLIDOS","SECCION Y GRADO",{"$f":"menu!$A3","v":"1 de junio"},{"$f":"menu!A10","v":"2 de junio"},{"$f":"menu!$A17","v":"3 de junio"},{"$f":"menu!A24","v":"4 de junio"},{"$f":"menu!A31","v":"5 de junio"},{"$f":"menu!A38","v":"8 de junio"},{"$f":"menu!A45","v":"9 de junio"},{"$f":"menu!A52","v":"10 de junio"},{"$f":"menu!A59","v":"11 de junio"},{"$f":"menu!A66","v":"12 de junio"},{"$f":"menu!A73","v":"15 de junio"},{"$f":"menu!A80","v":"16 de junio"},{"$f":"menu!A87","v":"17 de junio"},{"$f":"menu!A94","v":"18 de junio"},{"$f":"menu!A101","v":"19 de junio"},{"$f":"menu!A108","v":"22 de junio"},{"$f":"menu!A115","v":"23 de junio"},{"$f":"menu!A122","v":"24 de junio"},{"$f":"menu!A129","v":"25 de junio"},{"$f":"menu!A136","v":"26 de junio"},{"$f":"menu!A143","v":"29 de junio"},{"$f":"menu!A150","v":"30 de junio"},{"$f":"menu!A157","v":0},{"$f":"menu!A164","v":0},{"$f":"menu!A171","v":0},"Número de Almuerzos","COSTO DIARIO Primaria","Total Soles"]
["PEDIDO ALU3"]
["PEDIDO ALU2"]
["PEDIDO ALU1"]
[{"$f":"CONCATENATE(FORMATOPEDIDO2.0!D9,\"  \",FORMATOPEDIDO2.0!D10)","v":"  "},{"$f":"FORMATOPEDIDO2.0!I9","v":0},{"$f":"IF(C6=1,\"A\",IF(C6=2,\"Z\",IF(C6=3,\"D\",IF(C6=4,\"E\",\"\"))))","v":""},{"$f":"IF(D6=1,\"A\",IF(D6=2,\"Z\",IF(D6=3,\"D\",IF(D6=4,\"E\",\"\"))))","v":""},"","","","","","","","","","","","","","","","","","","","","","","",{"$f":"COUNTA(C6:AA6)","v":0},11.2,{"$f":"AB7*AC7","v":0},{"$f":"COUNTIF(C7:Z7,\"a\")","v":0},{"$f":"COUNTIF(C7:Z7,\"z\")","v":0},{"$f":"COUNTIF(C7:Z7,\"b\")","v":0},{"$f":"COUNTIF(C7:Z7,\"c\")","v":0},{"$f":"COUNTIF(C7:Z7,\"d\")","v":0},{"$f":"COUNTIF(C7:Z7,\"e\")","v":0}]
[{"$f":"CONCATENATE(ALUMNO2!D10,\" \",ALUMNO2!D9)","v":" "},{"$f":"ALUMNO2!I9","v":0},{"$f":"IF(C5=1,\"A\",IF(C5=2,\"Z\",IF(C5=3,\"D\",IF(C5=4,\"E\",\"\"))))","v":""},"","","","","","","","","","","","","","","","","","","","","","","","",{"$f":"COUNTA(C5:AA5)","v":0},11.2,{"$f":"AB8*AC8","v":0}]
[{"$f":"CONCATENATE(ALUMNO3!D10,\"  \",ALUMNO3!D9)","v":"  "},{"$f":"ALUMNO3!I9","v":0},{"$f":"IF($C$4=1,\"A\",IF($C$4=2,\"Z\",IF($C$4=3,\"D\",IF($C$4=4,\"E\",\"\"))))","v":""},{"$f":"IF(D4=1,\"A\",IF(D4=2,\"Z\",IF(D4=3,\"D\",IF(D4=4,\"E\",\"\"))))","v":""},"","","","","","","","","","","","","","","","","","","","","","","",{"$f":"COUNTA(C4:AA4)","v":0},11.2,{"$f":"AB9*AC9","v":0},{"$f":"COUNTIF(C9:Z9,\"a\")","v":0},{"$f":"COUNTIF(C9:Z9,\"z\")","v":0},{"$f":"COUNTIF(C9:Z9,\"b\")","v":0},{"$f":"COUNTIF(C9:Z9,\"c\")","v":0},{"$f":"COUNTIF(C9:Z9,\"d\")","v":0},{"$f":"COUNTIF(C9:Z9,\"e\")","v":0}]
["AGRADECEREMOS REALIZAR SUS DEPÓSITOS CON UN MAXIMO DE 05 DÍAS UTILES DESPUES DE INICIADO EL SERVICIO SOLICITADO PARA EVITAR EL RECARGO DE S/.12.00 POR RETRASO EN EL PAGO.\nA PARTIR DEL 6TO  DIA DE REALIZAR EL PEDIDO Y NO HABER REALIZADO LA CANCELACIÓN SE DEBE DE SUMAR UN RECARGO FIJO DE S/.12.00 AL IMPORTE TOTAL.",null,null,null,null,null,null,null,null,null,null,null,null,null,null,null,null,null,null,null,null,null,null,null,null,null,null,null,"TOTAL ",{"$f":"SUM(AD7:AD9)","v":0}]
[null,null,null,null,null,null,null,null,null,null,null,null,null,null,null,null,null,null,null,null,null,null,null,null,null,null,null,null,null,{"$f":"12","v":12}]
[null,null,null,null,null,null,null,null,null,null,null,null,null,null,null,null,null,null,null,null,null,null,null,null,null,null,null,null,"PAGO CON MORA ",12]

{"sheet":"menu","index":4,"n_rows":177,"n_cols":3,"rows_kept":177,"cut":false,"hidden":true,"merged":[[163,0,169,0],[163,2,163,7],[164,2,164,7],[165,2,165,7],[166,2,166,7],[167,2,167,7],[168,2,168,7],[169,2,169,7],[170,0,176,0],[170,2,170,7],[171,2,171,7],[172,2,172,7],[173,2,173,7],[174,2,174,7],[175,2,175,7],[176,2,176,7],[142,0,148,0],[149,0,155,0],[154,2,154,7],[155,2,155,7],[156,0,162,0],[156,2,156,7],[157,2,157,7],[158,2,158,7],[159,2,159,7],[160,2,160,7],[161,2,161,7],[162,2,162,7],[151,2,151,7],[152,2,152,7],[153,2,153,7],[145,2,145,7],[146,2,146,7],[147,2,147,7],[148,2,148,7],[149,2,149,7],[150,2,150,7],[79,0,85,0],[86,0,92,0],[93,0,99,0],[100,0,106,0],[107,0,113,0],[114,0,120,0],[121,0,127,0],[128,0,134,0],[135,0,141,0],[16,0,22,0],[23,0,29,0],[30,0,36,0],[37,0,43,0],[44,0,50,0],[51,0,57,0],[58,0,64,0],[65,0,71,0],[72,0,78,0],[139,2,139,7],[140,2,140,7],[141,2,141,7],[142,2,142,7],[143,2,143,7],[144,2,144,7],[121,2,121,7],[122,2,122,7],[123,2,123,7],[124,2,124,7],[125,2,125,7],[126,2,126,7],[133,2,133,7],[134,2,134,7],[135,2,135,7],[136,2,136,7],[137,2,137,7],[138,2,138,7],[127,2,127,7],[128,2,128,7],[129,2,129,7],[130,2,130,7],[131,2,131,7],[132,2,132,7],[115,2,115,7],[116,2,116,7],[117,2,117,7],[118,2,118,7],[119,2,119,7],[120,2,120,7],[109,2,109,7],[110,2,110,7],[111,2,111,7],[112,2,112,7],[113,2,113,7],[114,2,114,7],[103,2,103,7],[104,2,104,7],[105,2,105,7],[106,2,106,7],[107,2,107,7],[108,2,108,7],[97,2,97,7],[98,2,98,7],[99,2,99,7],[100,2,100,7],[101,2,101,7],[102,2,102,7],[91,2,91,7],[92,2,92,7],[93,2,93,7],[94,2,94,7],[95,2,95,7],[96,2,96,7],[85,2,85,7],[86,2,86,7],[87,2,87,7],[88,2,88,7],[89,2,89,7],[90,2,90,7],[79,2,79,7],[80,2,80,7],[81,2,81,7],[82,2,82,7],[83,2,83,7],[84,2,84,7],[73,2,73,7],[74,2,74,7],[75,2,75,7],[76,2,76,7],[77,2,77,7],[78,2,78,7],[67,2,67,7],[68,2,68,7],[69,2,69,7],[70,2,70,7],[71,2,71,7],[72,2,72,7],[61,2,61,7],[62,2,62,7],[63,2,63,7],[64,2,64,7],[65,2,65,7],[66,2,66,7],[28,2,28,7],[29,2,29,7],[30,2,30,7],[55,2,55,7],[56,2,56,7],[57,2,57,7],[58,2,58,7],[59,2,59,7],[60,2,60,7],[49,2,49,7],[50,2,50,7],[51,2,51,7],[52,2,52,7],[53,2,53,7],[54,2,54,7],[16,2,16,7],[17,2,17,7],[18,2,18,7],[43,2,43,7],[44,2,44,7],[45,2,45,7],[46,2,46,7],[47,2,47,7],[48,2,48,7],[37,2,37,7],[38,2,38,7],[39,2,39,7],[40,2,40,7],[41,2,41,7],[42,2,42,7],[31,2,31,7],[32,2,32,7],[33,2,33,7],[34,2,34,7],[35,2,35,7],[36,2,36,7],[25,2,25,7],[26,2,26,7],[27,2,27,7],[22,2,22,7],[23,2,23,7],[24,2,24,7],[0,0,0,7],[2,2,2,7],[3,2,3,7],[4,2,4,7],[5,2,5,7],[6,2,6,7],[7,2,7,7],[8,2,8,7],[9,2,9,7],[1,2,1,7],[2,0,8,0],[9,0,15,0],[10,2,10,7],[11,2,11,7],[12,2,12,7],[19,2,19,7],[20,2,20,7],[21,2,21,7],[13,2,13,7],[14,2,14,7],[15,2,15,7]]}
["Desde esta hoja de cálculo se ingresan los pedidos mensuales para que se actulicen los calendarios NO SE MUESTRA A LOS CLIENTES\n*SOLO SE CAMBIA DÍA Y MENU"]
["DIAS","OPCIONES","MENU"]
["1 de junio","Entrada","Ensalada de Pepino"]
[null,"A","Ají de gallina /arroz blanco"]
[null,"Z","Lentejitas guisadas con huevito al grill/arroz primavera"]
[null,"D","Ensalada César con pollo al grill"]
[null,"E","Nuggets de pollo al horno/papitas"]
[null,"postre","Fruta de Estación"]
[null,"refresco","Limonada"]
["2 de junio","Entrada","Pan al ajo"]
[null,"A","Canutos al pesto/hamburguesa de res"]
[null,"Z","Pollito a la Coca-Cola / arroz con verduras"]
[null,"D","Ensalada Capresse con pollo al grill"]
[null,"E","Pizzadillas de jamón y queso / mini César"]
[null,"postre","Mini Churros de manjar"]
[null,"refresco","Chicha morada"]
["3 de junio","Entrada","Mini crepe de tomate y albahaca"]
[null,"A","Puré de pallares guisados con pollo / arroz con verduras"]
[null,"Z","Milanesa de pescado/arroz con choclo/salsa tártara"]
[null,"D","Palta rellena a lo Waldorff (pollo)"]
[null,"E","Alitas / tequeños con guacamole"]
[null,"postre","Gelatina con fruta"]
[null,"refresco","Maracuyá"]
["4 de junio","Entrada","Wantan/tamarindo"]
[null,"A","Papita Rellena de pollo/ verduras salteadas"]
[null,"Z","Arroz Chaufa Fusión de pollo"]
[null,"D","Ensalada de Atún"]
[null,"E","Happy Lunch Cheeseburger /papitas"]
[null,"postre","Pionono de manjar"]
[null,"refresco","Naranjada"]
["5 de junio","Entrada","Ensalada de fideos"]
[null,"A","Locro de zapallo guisado con quesito fresco y huevo frito/ arroz blanco"]
[null,"Z","Estofado de pollo / arroz blanco"]
[null,"D","Causa Limeña"]
[null,"E","Dedos de pollo /puré"]
[null,"postre","Delicia de Fruta"]
[null,"refresco","Chicha morada"]
["8 de junio","Entrada","Mini Causita"]
[null,"A","Seco de pollo / arroz blanco"]
[null,"Z","Frijoles rojos batidos guisados con res / arroz con verduras"]
[null,"D","Ensalada César con pollo al grill"]
[null,"E","Nuggets de pollo al horno/papitas"]
[null,"postre","Gelatina con fruta"]
[null,"refresco","Limonada"]
["9 de junio","Entrada","Pan al ajo"]
[null,"A","Cordon Bleu / arroz con verduras"]
[null,"Z","Lasagna a la Bolognesa"]
[null,"D","Ensalada Rusa con betarraga y pollito al grill"]
[null,"E","Pizza casera de pollo y jamón /ensalada de espinacas"]
[null,"postre","Blondie"]
[null,"refresco","Maracuyá"]
["10 de junio","Entrada","Choclito en salsa de ocopa"]
[null,"A","Lomito saltado"]
[null,"Z","Spaghetti en salsa de tuco de pollo"]
[null,"D","Ensalada Criolla con pavo al horno"]
[null,"E","Alitas BBQ / encamotados de quinua"]
[null,"postre","Fruta de Estación"]
[null,"refresco","Chicha morada"]
["11 de junio","Entrada","Crema de zapallo"]
[null,"A","Filete de pollo en salsa BBQ con papas al horno / verduras salteadas"]
[null,"Z","Arvejitas verdes guisadas con carne / arroz blanco"]
[null,"D","Ensalada de pollo mechado"]
[null,"E","Happy Lunch Quesadillas Mexicanas de pollo / nachos con guacamole"]
[null,"postre","Bombitas HL"]
[null,"refresco","Limonada"]
["12 de junio","Entrada","Ensalada fresca"]
[null,"A","Papita rellena / salsa criolla / arroz blanco"]
[null,"Z","Quinua guisada con quesito fresco y brócoli"]
[null,"D","Palta rellena a la Reina"]
[null,"E","Dedos de pollo / tequeños"]
[null,"postre","Barquillos con chocolate"]
[null,"refresco","Limonada"]
["15 de junio","Entrada","Ensalada Bruschetta"]
[null,"A","Arroz Tapado /plátano al grill"]
[null,"Z","Lentejitas guisadas con huevito al grill/arroz primavera"]
[null,"D","Super Triple Integral Clásico / Chifles caseros"]
[null,"E","Nuggets al horno / choclito con queso"]
[null,"postre","Fruta de Estación"]
[null,"refresco","Limonada"]
["16 de junio","Entrada","Bolicausitas en salsa huancaina"]
[null,"A","Arroz con pollo"]
[null,"Z","Dedos de pescado / arroz con choclo /salsa tártara"]
[null,"D","Ensalada Cheff"]
[null,"E","Pizzadillas de jamón y queso / mini César"]
[null,"postre","Mini  relampago de chocolate"]
[null,"refresco","Chicha morada"]
["17 de junio","Entrada","Crema de zapallo"]
[null,"A","Pavito al horno / puré de espinaca/ arroz "]
[null,"Z","Panamitos guisados con huevito al grill / arroz con verduras"]
[null,"D","Ensalada Mexicana Quesadilla"]
[null,"E","Dedos de pollo / papitas duquezas"]
[null,"postre","Gelatina con fruta"]
[null,"refresco","Naranjada"]
["18 de junio","Entrada","Bombitas a la Diabla de espinaca"]
[null,"A","Trigo guisado con queso / arroz con verduras"]
[null,"Z","Pollito saltado / arroz blanco"]
[null,"D","Ensalada Criolla con pollito al grill"]
[null,"E","Wrap de Pollo y palta/Hojuelas"]
[null,"postre","Delicia de Fruta"]
[null,"refresco","Limonada"]
["19 de junio","Entrada","Mini Quesadilla"]
[null,"A","Albondigas a la Napolitana / arroz primavera"]
[null,"Z","Pollito al horno / puré de papa amarilla/ arroz blanco"]
[null,"D","Ensalada Cobb"]
[null,"E","Happy Lunch Cheeseburger /papitas"]
[null,"postre","Bombitas HL"]
[null,"refresco","Maracuyá"]
["22 de junio","Entrada","choclito con queso"]
[null,"A","Pollo anticuchado con puré de espinacas"]
[null,"Z","Tornillos en salsa bolognesa(con carne)"]
[null,"D","Ensalada César con pollo al grill"]
[null,"E","Nuggets al horno / papitas"]
[null,"postre","Gelatina con fruta"]
[null,"refresco","Naranjada"]
["23 de junio","Entrada","Ensalada fresca"]
[null,"A","Mini Tacu-tacu de Frijol con seco de res"]
[null,"Z","Pollo a la reina / arroz blanco"]
[null,"D","Causa Limeña"]
[null,"E","Sub de pollo ,lechuga ,tomate y palta / hojuelas de papas caseras"]
[null,"postre","Alfajor de manjar"]
[null,"refresco","Maracuyá"]
["24 de junio","Entrada","Huevito a la rusa"]
[null,"A","Cau-Cau de pollo / arroz blanco"]
[null,"Z","Lentejitas guisadas con huevito al grill/arroz primavera"]
[null,"D","Quiche de alcachofas / huevito a la rusa sin papa"]
[null,"E","Quesadillas mexicanas de pollo /nachos y guacamole"]
[null,"postre","muffin de fruta"]
[null,"refresco","Chicha morada"]
["25 de junio","Entrada","Mini César"]
[null,"A","Vainitas saltadas con carne de res / arroz blanco"]
[null,"Z","Spaghetti a la carbonara"]
[null,"D","Ensalada Oriental con pollito al grill"]
[null,"E","Dedos de pescado / palitos de yuca al horno"]
[null,"postre","Fruta de Estación"]
[null,"refresco","Limonada"]
["26 de junio","Entrada","Tequenos de quinua con queso"]
[null,"A","Pepian de choclo guisado con pollo / arroz blanco"]
[null,"Z","Estofado de res / arroz blanco"]
[null,"D","Ensalada Rusa con beterraga y pollito al grill"]
[null,"E","Pizzadillas de jamon y queso / mini César"]
[null,"postre","Brownies"]
[null,"refresco","Chicha morada"]
["29 de junio","Entrada"]
[null,"A"]
[null,"Z"]
[null,"D","FERIADO"]
[null,"E"]
[null,"postre"]
[null,"refresco"]
["30 de junio","Entrada","Wantan/tamarindo"]
[null,"A","Milanesa de pollo al grill con legumbres y arroz"]
[null,"Z","Arroz Chaufa Aeropuerto de pollo"]
[null,"D","Ensalada César con pollo al grill"]
[null,"E","Nuggets al horno con puré de papa amarilla"]
[null,"postre","Trufas de chocolate"]
[null,"refresco","Limonada"]
[null,"Entrada"]
[null,"A"]
[null,"Z"]
[null,"D"]
[null,"E"]
[null,"postre"]
[null,"refresco"]
[null,"Entrada"]
[null,"A"]
[null,"Z","feriado"]
[null,"D"]
[null,"E"]
[null,"postre"]
[null,"refresco"]
[null,"Entrada"]
[null,"A"]
[null,"Z","feriado"]
[null,"D"]
[null,"E"]
[null,"postre"]
[null,"refresco"]